fUSD/lending_fUSD_20251129
["ID","MTS","AMOUNT","RATE_DAILY","PERIOD"]
[395125295,1764459032313,-500.0,0.00014549,2]
[395125297,1764459032323,-500.0,0.00014549,2]
[395125299,1764459032332,-500.0,0.00014549,2]
[395125301,1764459032341,-500.0,0.00014549,2]
[395125303,1764459032351,-500.0,0.00014549,2]
[395125305,1764459032360,-500.0,0.00014549,2]
[395125307,1764459032370,-500.0,0.00014549,2]
[395125309,1764459032380,-500.0,0.00014549,2]
[395125311,1764459032388,-500.0,0.00014549,2]
[395125313,1764459032398,-500.0,0.00014549,2]
[395125315,1764459032407,-500.0,0.00014549,2]
[395125317,1764459032416,-500.0,0.00014549,2]
[395125319,1764459032426,-500.0,0.00014549,2]
[395125321,1764459032436,-500.0,0.00014549,2]
[395125323,1764459032445,-500.0,0.00014549,2]
[395125325,1764459032454,-500.0,0.00014549,2]
[395125327,1764459032463,-500.0,0.00014549,2]
[395125329,1764459032472,-500.0,0.00014549,2]
[395125331,1764459032482,-500.0,0.00014549,2]
[395125333,1764459032491,-500.0,0.00014549,2]
[395125335,1764459032500,-500.0,0.00014549,2]
[395125337,1764459032510,-500.0,0.00014549,2]
[395125339,1764459032520,-500.0,0.00014549,2]
[395125341,1764459032529,-500.0,0.00014549,2]
[395125343,1764459032539,-500.0,0.00014549,2]
[395125345,1764459032548,-500.0,0.00014549,2]
[395125347,1764459032557,-500.0,0.00014549,2]
[395125349,1764459032566,-500.0,0.00014549,2]
[395125351,1764459032576,-500.0,0.00014549,2]
[395125353,1764459032585,-500.0,0.00014549,2]
[395125355,1764459032594,-500.0,0.00014549,2]
[395125357,1764459032603,-500.0,0.00014549,2]
[395125359,1764459032611,-500.0,0.00014549,2]
[395125361,1764459032621,-500.0,0.00014549,2]
[395125363,1764459032630,-500.0,0.00014549,2]
[395125365,1764459032639,-500.0,0.00014549,2]
[395125367,1764459032648,-500.0,0.00014549,2]
[395125369,1764459032657,-500.0,0.00014549,2]
[395125371,1764459032666,-170.74226421,0.00014549,2]
[395125373,1764459032675,-647.44359284,0.00014549,2]
[395125375,1764459032684,-4047.12508169,0.00014549,2]
[395125377,1764459032693,-4047.12508169,0.00014549,2]
[395125379,1764459032702,-500.0,0.00014549,2]
[395125381,1764459032711,-4831.5096,0.0001455,2]
[395125382,1764459032720,-1000.0,0.0001455,2]
[395125384,1764459032729,-331.86558707,0.000146,2]
[395125386,1764459032741,-5613.06929551,0.000149,2]
[395125389,1764459032754,-10022.21586557,0.000149,2]
[395125391,1764459032764,-3689.27949218,0.00015,2]
[395125393,1764459032773,-33343.40624712,0.00015,4]
[395125911,1764459037933,-6380.94726139,0.000149,2]
[395125913,1764459037942,-269487.55322711,0.00015,4]
[395125915,1764459037956,-12029.21578807,0.00015,2]
[395125917,1764459037966,-15635.28516107,0.00015122,2]
[395125919,1764459037974,-15635.28516107,0.00015344,2]
[395125921,1764459037984,-15635.28516107,0.00015567,2]
[395125923,1764459037995,-1349.84,0.00015576,2]
[395125926,1764459038004,-255.0,0.00015668,2]
[395125927,1764459038013,-271.36745172,0.00015788,2]
[395125930,1764459038024,-15635.28516107,0.00015789,2]
[395125931,1764459038033,-1027.78404924,0.000159,2]
[395125934,1764459038042,-1027.78404924,0.000159,2]
[395125936,1764459038051,-1027.78404924,0.000159,2]
[395125938,1764459038061,-1027.78404924,0.000159,2]
[395125940,1764459038071,-420.0,0.00015929,2]
[395125942,1764459038080,-420.0,0.00015929,2]
[395125944,1764459038089,-500.0,0.00015973,2]
[395125946,1764459038099,-500.0,0.00015973,2]
[395125948,1764459038111,-500.0,0.00015973,2]
[395125950,1764459038121,-500.0,0.00015973,2]
[395125952,1764459038130,-500.0,0.00015973,2]
[395125954,1764459038139,-500.0,0.00015973,2]
[395125956,1764459038149,-500.0,0.00015973,2]
[395125958,1764459038159,-500.0,0.00015973,2]
[395125960,1764459038168,-500.0,0.00015973,2]
[395125962,1764459038177,-501.65327585,0.00015973,2]
[395125964,1764459038186,-500.0,0.00015973,2]
[395125966,1764459038196,-500.33790784,0.00015973,2]
[395125968,1764459038205,-500.0,0.00015973,2]
[395125970,1764459038217,-500.0,0.00015973,2]
[395125972,1764459038227,-315.71495663,0.00015973,2]
[395125974,1764459038236,-500.0,0.00015973,2]
[395125976,1764459038246,-500.0,0.00015973,2]
[395125978,1764459038255,-500.0,0.00015973,2]
[395125980,1764459038264,-500.0,0.00015973,2]
[395125982,1764459038275,-622.41255856,0.00015973,2]
[395125984,1764459038285,-500.0,0.00015973,2]
[395125986,1764459038295,-500.0,0.00015973,2]
[395125988,1764459038304,-23662.03648702,0.00016,2]
[395125990,1764459038316,-80196.52801918,0.00016,2]
[395125992,1764459038326,-205543.50970635,0.00016,4]
[395125994,1764459038335,-250.0,0.00016003,2]
[395125996,1764459038344,-195.0,0.00016003,2]
[395125999,1764459038354,-195.0,0.00016003,2]
[395126001,1764459038363,-195.0,0.00016003,2]
[395126002,1764459038372,-193.0,0.00016003,2]
[395126004,1764459038381,-250.0,0.00016003,2]
[395126007,1764459038392,-300.0,0.00016003,2]
[395126009,1764459038402,-150.32875877,0.00016003,2]
[395126011,1764459038411,-1680.0,0.00016003,2]
[395126013,1764459038421,-15635.28516107,0.00016011,2]
[395126015,1764459038431,-392.0,0.00016049,2]
[395126017,1764459038440,-151.0,0.00016081,2]
[395126019,1764459038449,-402.97090635,0.00016089,2]
[395126021,1764459038459,-228.0,0.00016113,2]
[395126023,1764459038468,-150.99,0.00016116,2]
[395126025,1764459038477,-19999.99,0.00016116,2]
[395126027,1764459038486,-496.0,0.00016145,2]
[395126029,1764459038496,-50000.04151584,0.000162,5]
[395126031,1764459038505,-15635.28516107,0.00016233,2]
[395126073,1764459038931,-2751.0,0.00016286,2]
[395126074,1764459038982,-250.0,0.00016286,2]
[395126075,1764459038993,-200.0,0.0001634,2]
[395126076,1764459039003,-500.0,0.00016438,2]
[395126077,1764459039013,-416.08725444,0.00016438,2]
[395126078,1764459039023,-500.0,0.00016438,2]
[395126080,1764459039033,-500.0,0.00016438,2]
[395126082,1764459039043,-500.0,0.00016438,2]
[395126084,1764459039052,-500.0,0.00016438,2]
[395126086,1764459039062,-500.0,0.00016438,2]
[395126088,1764459039071,-500.0,0.00016438,2]
[395126090,1764459039080,-500.0,0.00016438,2]
[395126092,1764459039090,-500.0,0.00016438,2]
[395126094,1764459039100,-500.0,0.00016438,2]
[395126096,1764459039109,-500.0,0.00016438,2]
[395126098,1764459039118,-500.0,0.00016438,2]
[395126100,1764459039128,-646.74139431,0.00016438,2]
[395126102,1764459039137,-500.0,0.00016438,2]
[395126104,1764459039147,-500.0,0.00016438,2]
[395126106,1764459039156,-500.0,0.00016438,2]
[395126108,1764459039166,-5266.08,0.00016438,2]
[395126110,1764459039175,-800.0,0.00016438,2]
[395126112,1764459039185,-15635.28516107,0.00016456,2]
[395126114,1764459039195,-1000.0,0.00016521,2]
[395126116,1764459039205,-1000.0,0.00016521,2]
[395126118,1764459039215,-360.05947122,0.00016521,2]
[395126120,1764459039225,-415.8000054,0.00016521,2]
[395126122,1764459039234,-500.79206791,0.00016521,2]
[395126125,1764459039244,-1000.0,0.00016521,2]
[395126127,1764459039254,-1000.0,0.00016521,2]
[395126129,1764459039264,-494.11980425,0.00016521,2]
[395126131,1764459039273,-500.0,0.00016521,2]
[395126133,1764459039282,-500.0,0.00016521,2]
[395126135,1764459039291,-1000.0,0.00016521,2]
[395126137,1764459039300,-1000.0,0.00016521,2]
[395126139,1764459039311,-1000.0,0.00016521,2]
[395126141,1764459039320,-500.0,0.00016521,2]
[395126143,1764459039330,-1000.0,0.00016521,2]
[395126145,1764459039339,-500.0,0.00016521,2]
[395126147,1764459039348,-1017.62515895,0.00016521,2]
[395126149,1764459039358,-15635.28516107,0.00016678,2]
[395126152,1764459039368,-433.0,0.00016876,2]
[395126154,1764459039377,-474.84133514,0.000169,2]
[395126156,1764459039386,-550.79745506,0.000169,2]
[395126158,1764459039395,-15635.28516107,0.000169,2]
[395126160,1764459039405,-10000.0,0.000169,2]
[395126162,1764459039414,-539.82653192,0.00016973,2]
[395126164,1764459039424,-500.0,0.00016973,2]
[395126166,1764459039433,-500.0,0.00016973,2]
[395126168,1764459039443,-615.51796754,0.00016973,2]
[395126170,1764459039452,-500.0,0.00016973,2]
[395126172,1764459039461,-500.0,0.00016973,2]
[395126174,1764459039470,-500.0,0.00016973,2]
[395126176,1764459039479,-268.93907095,0.00016973,2]
[395126178,1764459039488,-500.0,0.00016973,2]
[395126180,1764459039503,-500.0,0.00016973,2]
[395126183,1764459039513,-176.33851761,0.00016973,2]
[395126185,1764459039523,-500.0,0.00016973,2]
[395126187,1764459039534,-500.0,0.00016973,2]
[395126189,1764459039543,-500.0,0.00016973,2]
[395126191,1764459039553,-500.0,0.00016973,2]
[395126193,1764459039563,-500.0,0.00016973,2]
[395126195,1764459039573,-500.0,0.00016973,2]
[395126197,1764459039582,-500.0,0.00016973,2]
[395126199,1764459039592,-281.67573932,0.00016973,2]
[395126201,1764459039601,-415.30385931,0.00016973,2]
[395126203,1764459039611,-500.0,0.00016973,2]
[395126205,1764459039621,-500.0,0.00016973,2]
[395126208,1764459039631,-500.0,0.00016973,2]
[395126210,1764459039640,-500.0,0.00016973,2]
[395126212,1764459039649,-500.0,0.00016973,2]
[395126214,1764459039660,-500.0,0.00016973,2]
[395126216,1764459039670,-500.0,0.00016973,2]
[395126218,1764459039679,-500.0,0.00016973,2]
[395126220,1764459039688,-500.0,0.00016973,2]
[395126222,1764459039698,-500.0,0.00016973,2]
[395126224,1764459039708,-500.0,0.00016973,2]
[395126226,1764459039717,-500.0,0.00016973,2]
[395126228,1764459039727,-1226.0,0.00016986,2]
[395126230,1764459039736,-1040.24545121,0.00016999,5]
[395126232,1764459039746,-1040.24545122,0.00016999,5]
[395126234,1764459039756,-300.0,0.00016999,2]
[395126236,1764459039767,-1056.89949335,0.00016999,5]
[395126238,1764459039776,-1056.89949334,0.00016999,5]
[395126241,1764459039787,-250.0,0.00017,2]
[395126243,1764459039797,-6438977.11866726,0.00017,2]
[395126249,1764459039851,-512.40145235,0.00017,2]
[395126264,1764459039956,-908.9724903,0.00017,2]
[395126267,1764459039968,-2311.499995,0.00017,2]
[395126528,1764459042558,-500.0,0.00017,2]
[395126553,1764459042791,-840.51735961,0.00015122,2]
[395127732,1764459075083,9611.27008656,0.0001445,2]
[395127733,1764459075109,10000.01,0.0001445,2]
[395127734,1764459075135,10000.01,0.0001445,2]
[395127735,1764459075160,1816.92481344,0.0001445,2]
[395127787,1764459103124,8183.08518656,0.0001445,2]
[395127788,1764459103153,10000.01,0.0001445,2]
[395127789,1764459103183,10000.01,0.0001445,2]
[395127790,1764459103213,10000.01,0.0001445,2]
[395127791,1764459103242,10000.01,0.0001445,2]
[395127795,1764459108833,-300.0,0.0001445,2]
[395127796,1764459111561,-1125.32910829,0.0001445,2]
[395127797,1764459113634,-926.60251764,0.0001445,2]
[395127798,1764459116159,-534.47777655,0.0001445,2]
[395127799,1764459119414,-280.49203573,0.0001445,2]
[395127801,1764459130229,-300.0,0.00014449,2]
[395127802,1764459130263,-195.0,0.0001445,2]
[395127803,1764459132598,-9010.01,0.0001445,2]
[395127804,1764459132831,-10000.01,0.0001445,2]
[395127805,1764459135995,-10000.01,0.0001445,2]
[395127806,1764459139074,-10000.01,0.0001445,2]
[395127807,1764459139196,-10000.01,0.0001445,2]
[395127816,1764459155674,-302.0,0.0001445,2]
[395127818,1764459158667,-614.0880157,0.00014378,2]
[395127821,1764459164673,-195.0,0.00014378,2]
[395127822,1764459165990,-195.0,0.00014378,2]
[395127824,1764459168265,-525.77771,0.00014378,2]
[395127842,1764459199441,-491.2233833,0.00014378,2]
[395127843,1764459199462,-8.7766167,0.00014378,2]
[395127844,1764459201072,-165.34815311,0.00014378,2]
[395127855,1764459230783,1191.125863,0.00014305,2]
[395127860,1764459299011,278.98308155,0.0001435,2]
[395127862,1764459308844,8529.90105545,0.0001435,2]
[395127863,1764459308871,7020.89592893,0.0001435,2]
[395127865,1764459318164,166.66,0.0001403,2]
[395127866,1764459318387,166.66,0.00014325,2]
[395127875,1764459349169,-35.23941849,0.00014378,2]
[395127876,1764459349193,-140.01373992,0.00014448,2]
[395127877,1764459352111,-159.98626008,0.00014448,2]
[395127878,1764459352134,-50.01373992,0.00014448,2]
[395127886,1764459368206,-169.581366,0.00014448,2]
[395127887,1764459370422,-80.40489408,0.00014448,2]
[395127888,1764459370447,-87.8245531,0.00014448,2]
[395127890,1764459378863,-195.0,0.00014448,2]
[395127891,1764459383996,-483.74802053,0.00014448,2]
[395127892,1764459386136,-200.17707136,0.00014448,2]
[395127893,1764459388578,-233.25035501,0.00014448,2]
[395127894,1764459388602,-16.74964499,0.00014448,2]
[395127895,1764459390822,-172.85401695,0.00014448,2]
[395127896,1764459392973,-110.39633806,0.00014448,2]
[395127897,1764459392996,-250.0,0.00014449,2]
[395127898,1764459393018,-202.30130885,0.00014449,2]
[395127899,1764459409371,-374.26998707,0.00014449,2]
[395127902,1764459411205,-464.44833614,0.00014449,2]
[395127903,1764459413485,-158.98036794,0.00014449,2]
[395127904,1764459413508,-68.48390448,0.00014449,2]
[395127905,1764459417573,-81.51609552,0.00014449,2]
[395127906,1764459417602,-117.64062327,0.00014449,2]
[395127907,1764459419995,-300.0,0.00014449,2]
[395127908,1764459422558,1045.79679859,0.00014449,5]
[395127909,1764459465243,9025.79048476,0.0001435,2]
[395127910,1764459477916,302.0,0.0001435,2]
[395127912,1764459586911,323.16322926,0.0001435,2]
[395127921,1764459646631,349.05628598,0.0001435,2]
[395127922,1764459646656,465.91351402,0.0001435,2]
[395127923,1764459693968,2995.74,0.00014161,2]
[395127924,1764459694221,183.758,0.00014161,2]
[395127926,1764459706414,6354.59848598,0.0001435,2]
[395127927,1764459706439,7641.11879998,0.0001435,2]
[395127928,1764459870182,-300.0,0.0001444,2]
[395127929,1764459870207,-1200.0,0.0001444,2]
[395127930,1764459870230,-195.0,0.0001444,2]
[395127931,1764459870252,-195.0,0.0001444,2]
[395127932,1764459870275,-250.0,0.0001444,2]
[395127933,1764459870297,-354.24049117,0.00014441,2]
[395127934,1764459870323,-500.0,0.00014441,2]
[395127935,1764459870346,-151.0,0.00014441,2]
[395127936,1764459870369,-151.0,0.00014441,2]
[395127937,1764459870389,-200.0,0.00014441,2]
[395127938,1764459870412,-151.0,0.00014441,2]
[395127939,1764459870435,-151.0,0.00014441,2]
[395127940,1764459870458,-151.0,0.00014441,2]
[395127941,1764459870480,-156.49532354,0.00014441,2]
[395127942,1764459870504,-200.0,0.00014441,2]
[395127943,1764459870532,-188.15640171,0.00014441,2]
[395127944,1764459870552,-200.0,0.00014441,2]
[395127945,1764459870575,-195.0,0.00014442,2]
[395127946,1764459870596,-150.0,0.00014448,2]
[395127947,1764459870620,-82.35937673,0.00014449,2]
[395127948,1764459870644,-500.0,0.00014449,2]
[395127949,1764459870669,-500.0,0.00014449,2]
[395127950,1764459870693,-500.0,0.00014449,2]
[395127951,1764459870716,-378.74840685,0.00014449,2]
[395127953,1764459876763,282.76782562,0.0001435,2]
[395127954,1764459888519,2076.1233744,0.0001435,2]
[395127955,1764459888542,6047.08806192,0.0001435,2]
[395127956,1764459942329,738.7154,0.0001435,2]
[395128199,1764460075667,1128.71,7.184e-05,2]
[395128200,1764460075857,1128.71,7.563e-05,2]
[395128201,1764460076046,956.78653808,7.941e-05,2]
[395128202,1764460076072,171.92346192,7.941e-05,2]
[395128203,1764460076271,1128.71,8.319e-05,2]
[395128204,1764460076469,1128.71,8.697e-05,2]
[395128205,1764460076666,1128.71,9.075e-05,2]
[395128206,1764460076873,1128.71,9.453e-05,2]
[395128207,1764460077052,1128.71,9.831e-05,2]
[395128208,1764460077246,1128.71,0.0001021,2]
[395128209,1764460077459,1128.71,0.00010588,2]
[395128210,1764460077668,1128.71,0.00010966,2]
[395128211,1764460077884,798.40653808,0.00011344,2]
[395128212,1764460078302,330.30346192,0.00011344,2]
[395128213,1764460078341,1128.71,0.00011722,2]
[395128214,1764460078386,1128.71,0.000121,2]
[395128215,1764460078502,1128.71,0.00012478,2]
[395128216,1764460078716,1128.71,0.00012857,2]
[395128217,1764460078915,1128.71,0.00013235,2]
[395128218,1764460079115,1128.71,0.00013613,2]
[395128219,1764460079327,1128.71,0.00013991,2]
[395128220,1764460079519,1128.71,0.00014369,2]
[395128224,1764460096906,-581.0457758,0.00014402,2]
[395128225,1764460098426,-280.15032197,0.00014402,2]
[395128227,1764460101727,-156.10674992,0.00014402,2]
[395128228,1764460102141,10000.01,0.0001435,2]
[395128229,1764460102165,2596.13555731,0.0001435,2]
[395128231,1764460104809,-500.0,0.00014402,2]
[395128234,1764460106090,-166.66,0.00014402,2]
[395128235,1764460109868,-240.23519614,0.00014402,2]
[395128236,1764460111934,-500.0,0.00014402,2]
[395128237,1764460114492,-249.54801596,0.00014402,2]
[395128245,1764460117790,-184.56244255,0.00014402,2]
[395128247,1764460119392,-308.23795862,0.00014402,2]
[395128248,1764460121030,7403.87444269,0.0001435,2]
[395128249,1764460121060,10000.01,0.0001435,2]
[395128250,1764460121087,10000.01,0.0001435,2]
[395128251,1764460121116,10000.01,0.0001435,2]
[395128252,1764460121143,10000.01,0.0001435,2]
[395128253,1764460121169,10000.01,0.0001435,2]
[395128255,1764460121195,10000.01,0.0001435,2]
[395128257,1764460121220,10000.01,0.0001435,2]
[395128259,1764460121246,10000.01,0.0001435,2]
[395128267,1764460121732,-500.0,0.0001435,2]
[395128268,1764460122568,968.22,0.00014071,2]
[395128269,1764460125002,-153.7343932,0.0001435,2]
[395128270,1764460127504,-500.0,0.0001435,2]
[395128271,1764460128685,-499.99999983,0.0001435,2]
[395128272,1764460132178,-250.71056848,0.0001435,2]
[395128273,1764460134536,4820.280854,0.00014278,2]
[395128274,1764460134734,-891.71688568,0.0001435,2]
[395128275,1764460139524,-232.76894462,0.0001435,2]
[395128277,1764460142276,-153.01384584,0.0001435,2]
[395128278,1764460143772,-500.0,0.0001435,2]
[395128283,1764460151902,-1500.0,0.00013918,2]
[395128286,1764460158608,-395.9451727,0.00014302,2]
[395128287,1764460158641,-500.0,0.0001435,2]
[395128288,1764460159047,167.788819,0.00014278,2]
[395128289,1764460162360,-248.70577889,0.00014278,2]
[395128290,1764460164882,-725.93285611,0.00014278,2]
[395128291,1764460166041,-451.0,0.0001435,2]
[395128298,1764460180710,-1253.57369753,0.0001435,2]
[395128299,1764460183431,-10000.01,0.0001435,2]
[395128300,1764460186673,-10000.01,0.0001435,2]
[395128305,1764460203886,-210.2977053,0.00014349,2]
[395128313,1764460206264,-500.0,0.00014349,2]
[395128320,1764460208291,6643.593539,7.945e-05,2]
[395128321,1764460210803,-438.7022947,0.00014349,2]
[395128322,1764460214448,-51.0,0.00014349,2]
[395128323,1764460214472,-195.70617127,0.00014349,2]
[395128324,1764460216182,-104.29382873,0.00014349,2]
[395128325,1764460216205,-172.0924981,0.00014349,2]
[395128326,1764460222336,-127.9075019,0.00014349,2]
[395128327,1764460222363,-73.7079998,0.0001435,2]
[395128328,1764460227071,-393.73091858,0.0001434,2]
[395128341,1764460231824,-3418.81908142,0.0001434,2]
[395128342,1764460231834,-3812.55,0.0001434,2]
[395128343,1764460231843,-263396.42083061,0.0001435,2]
[395128344,1764460233602,328.092498,0.00014277,2]
[395128369,1764460238023,-383739.37839172,0.0001435,2]
[395128370,1764460238033,-22787.8397,0.0001435,2]
[395128371,1764460238043,-2500.0,0.0001435,2]
[395128372,1764460238052,-13917.12708,0.00014356,2]
[395128373,1764460238062,-54136.08353904,0.00014402,2]
[395128374,1764460238072,-1669.0710545,0.00014441,2]
[395128375,1764460238081,-200.0,0.00014441,2]
[395128376,1764460238091,-597.09424157,0.00014441,2]
[395128377,1764460238101,-202.58152099,0.00014441,2]
[395128378,1764460238111,-1248.23131937,0.00014449,2]
[395128379,1764460238120,-200.0,0.00014449,2]
[395128380,1764460238130,-500.0,0.00014449,2]
[395128381,1764460238140,-500.0,0.00014449,2]
[395128383,1764460238149,-1000.0,0.00014449,2]
[395128385,1764460238159,-1000.0,0.0001445,2]
[395128387,1764460238168,-600.0,0.0001445,2]
[395128389,1764460238178,-150.0,0.00014463,2]
[395128392,1764460238188,-151.0,0.00014521,2]
[395128393,1764460238197,-500.0,0.00014549,2]
[395128395,1764460238207,-510.74534266,0.00014549,2]
[395128397,1764460238217,-500.0,0.00014549,2]
[395128399,1764460238226,-500.0,0.00014549,2]
[395128401,1764460238236,-500.0,0.00014549,2]
[395128403,1764460238246,-500.0,0.00014549,2]
[395128405,1764460238255,-500.0,0.00014549,2]
[395128407,1764460238265,-500.0,0.00014549,2]
[395128410,1764460238274,-500.0,0.00014549,2]
[395128412,1764460238284,-500.0,0.00014549,2]
[395128414,1764460238293,-500.0,0.00014549,2]
[395128415,1764460238303,-500.0,0.00014549,2]
[395128418,1764460238312,-591.31867425,0.00014549,2]
[395128420,1764460238322,-500.0,0.00014549,2]
[395128422,1764460238332,-630.9506587,0.00014549,2]
[395128424,1764460238342,-500.0,0.00014549,2]
[395128426,1764460238351,-500.0,0.00014549,2]
[395128427,1764460238360,-500.0,0.00014549,2]
[395128429,1764460238370,-500.0,0.00014549,2]
[395128431,1764460238380,-500.0,0.00014549,2]
[395128433,1764460238389,-500.0,0.00014549,2]
[395128435,1764460238398,-500.0,0.00014549,2]
[395128437,1764460238408,-500.0,0.00014549,2]
[395128438,1764460238419,-500.0,0.00014549,2]
[395128439,1764460238428,-500.0,0.00014549,2]
[395128440,1764460238437,-500.0,0.00014549,2]
[395128441,1764460238447,-500.0,0.00014549,2]
[395128442,1764460238456,-1235.58,0.00014549,2]
[395128443,1764460238466,-500.0,0.00014591,2]
[395128444,1764460238475,-200.0,0.00014593,2]
[395128445,1764460238484,-1714.3,0.00014611,2]
[395128446,1764460238493,-166.66,0.00014621,2]
[395128447,1764460238503,-12596.14555729,0.00014633,2]
[395128448,1764460238512,-395.94517265,0.00014673,2]
[395128449,1764460238521,-1190.58645402,0.00014712,2]
[395128450,1764460238531,-600.0,0.00014724,2]
[395128451,1764460238541,-95535.37957935,0.00014799,2]
[395128452,1764460238551,-498.0,0.00014812,2]
[395128453,1764460238560,-1235.58,0.00014823,2]
[395128454,1764460238570,-456.36745172,0.00014841,2]
[395128455,1764460238579,-166.66,0.00014916,2]
[395128456,1764460238589,-12596.14555729,0.00014917,2]
[395128457,1764460238599,-402.97090635,0.00014918,2]
[395128458,1764460238608,-238.0,0.00014918,2]
[395128459,1764460238618,-166.0,0.00014948,2]
[395128460,1764460238633,-180.0,0.00014977,2]
[395128461,1764460238643,-200.0,0.00014989,2]
[395128462,1764460238653,-531.97,0.00014998,2]
[395128463,1764460238663,-500.0,0.00014999,2]
[395128464,1764460238672,-332.62709138,0.00014999,2]
[395128465,1764460238682,-500.0,0.00014999,2]
[395128466,1764460238691,-500.0,0.00014999,2]
[395128467,1764460238701,-500.0,0.00014999,2]
[395128468,1764460238711,-500.0,0.00014999,2]
[395128469,1764460238720,-395.94517265,0.00015044,2]
[395128470,1764460238730,-3313.0,0.00015068,2]
[395128471,1764460238740,-151.0,0.00015069,2]
[395128472,1764460238750,-1235.58,0.00015097,2]
[395128473,1764460238760,-200.0,0.00015105,2]
[395128474,1764460238770,-12596.14555729,0.000152,2]
[395128475,1764460238780,-166.66,0.00015211,2]
[395128476,1764460238790,-3029.17263579,0.0001524,2]
[395128477,1764460238799,-150.0,0.00015288,2]
[395128478,1764460238809,-150.0,0.00015288,2]
[395128479,1764460238818,-150.0,0.00015288,2]
[395128480,1764460238827,-150.0,0.00015288,2]
[395128481,1764460238837,-150.0,0.00015288,2]
[395128482,1764460238847,-150.0,0.00015288,2]
[395128483,1764460238858,-150.0,0.00015288,2]
[395128484,1764460238868,-150.0,0.00015288,2]
[395128485,1764460238878,-150.0,0.00015288,2]
[395128486,1764460238888,-150.0,0.00015288,2]
[395128487,1764460238898,-150.0,0.00015288,2]
[395128488,1764460238908,-200.0,0.00015303,2]
[395128489,1764460238918,-1235.58,0.00015371,2]
[395128490,1764460238928,-240.42,0.00015391,2]
[395128491,1764460238938,-395.94517265,0.00015415,2]
[395128492,1764460238949,-150.0,0.00015429,2]
[395128493,1764460238959,-150.0,0.00015458,2]
[395128494,1764460238968,-150.0,0.00015476,2]
[395128495,1764460238979,-8123.21143627,0.00015483,2]
[395128496,1764460238988,-12596.14555729,0.00015483,2]
[395128497,1764460238999,-166.66,0.00015507,2]
[395128498,1764460239009,-3091.30305809,0.00015513,2]
[395128499,1764460239019,-150.0,0.0001553,2]
[395128500,1764460239028,-200.0,0.00015537,2]
[395128501,1764460239039,-150.0,0.00015571,2]
[395128502,1764460239048,-150.0,0.00015571,2]
[395128503,1764460239058,-151.0,0.00015617,2]
[395128504,1764460239067,-150.0,0.00015627,2]
[395128505,1764460239077,-150.0,0.00015627,2]
[395128506,1764460239086,-1235.58,0.00015645,2]
[395128507,1764460239096,-150.0,0.00015665,2]
[395128508,1764460239105,-150.0,0.00015712,2]
[395128509,1764460239115,-420.0,0.00015715,2]
[395128510,1764460239125,-420.0,0.00015715,2]
[395128511,1764460239134,-8123.21143627,0.00015767,2]
[395128512,1764460239144,-12596.14555729,0.00015767,2]
[395128513,1764460239154,-150.0,0.00015773,2]
[395128514,1764460239163,-195.0,0.00015784,2]
[395128515,1764460239173,-250.0,0.00015784,2]
[395128516,1764460239182,-1680.0,0.00015784,2]
[395128517,1764460239192,-250.0,0.00015785,2]
[395128518,1764460239201,-195.0,0.00015785,2]
[395128519,1764460239211,-395.94517265,0.00015787,2]
[395128520,1764460239220,-150.0,0.00015797,2]